Cogmind - Beta 13 @@@ ROGUE MODE // 2024.05.02 @ 13:42:35 Player: Wesmed Result: Destroyed by XC-S5O(R) with Subdweller Beam Cannon Performance ------------- Evolutions (0) 0 Regions Visited (3) 600 Robots Destroyed (18) 90 Value Destroyed (251) 251 Prototype IDs (0) 0 Alien Tech Used (0) 0 Bonus (0) 0 TOTAL SCORE: 941 Bonus ------- None Cogmind --------- Core Integrity 0/250 Matter 265/300 Energy 240/250 System Corruption 2% Temperature Cool (18) Movement Rolling (107) Ox1 Location -10/Subcaves Parts ------- > --- POWER (1) -------- Ion Engine > --- PROPULSION (2) --- Wheel Subdweller Monowheel > --- UTILITY (2) ------ Large Storage Unit Signal Interpreter > --- WEAPON (2) ------- Subdweller Laser Beam Cannon > --- INVENTORY (15) --- Light Ion Engine Light Treads Wheel Subdweller Monowheel Subdweller Monowheel Subdweller Optics Subdweller Optics Sensor Array Experimental Sensor Array Improved Terrain Scanner Makeshift Light Armor Plating EM Pulse Gun Assault Rifle Grenade Launcher Mining Laser Peak State ------------ > --- POWER ------------ Ion Engine > --- PROPULSION ------- Wheel Subdweller Monowheel > --- UTILITY ---------- Large Storage Unit Signal Interpreter > --- WEAPON ----------- Subdweller Laser Beam Cannon > --- INVENTORY -------- Light Ion Engine Light Treads Wheel Subdweller Monowheel Subdweller Monowheel Subdweller Optics Subdweller Optics Sensor Array Experimental Sensor Array Improved Terrain Scanner Makeshift Light Armor Plating EM Pulse Gun Assault Rifle Grenade Launcher Mining Laser [Rating: 12] Favorites ----------- Power Light Ion Engine Engine Light Ion Engine Propulsion Wheel Wheel Wheel Utility Large Storage Unit Device Improved Terrain Scanner Storage Large Storage Unit Processor Signal Interpreter Weapon Assault Rifle Energy Gun Subdweller Laser Energy Cannon Beam Cannon Ballistic Gun Assault Rifle Special Weapon Mining Laser Build | -11 -10 -10 -10 ------- Run | Yrd Mat Min Sub Slots Evolved . | . . . . Power . | . . . . Propulsion . | . . . . Utility . | . . . . Weapon . | . . . . Parts Attached 24 | 7 4 1 12 Power 2 | 1 . . 1 Engine 2 | 1 . . 1 Core . | . . . . Reactor . | . . . . Propulsion 7 | 3 . 1 3 Treads . | . . . . Leg . | . . . . Wheel 7 | 3 . 1 3 Hover . | . . . . Flight . | . . . . Utility 7 | 2 3 . 2 Device 2 | 1 . . 1 Storage 4 | 1 2 . 1 Processor 1 | . 1 . . Hackware . | . . . . Protection . | . . . . Artifact . | . . . . Weapon 8 | 1 1 . 6 Energy Gun 1 | . . . 1 Energy Cannon 1 | . . . 1 Ballistic Gun 4 | 1 1 . 2 Ballistic Cannon . | . . . . Launcher . | . . . . Special Weapon 2 | . . . 2 Impact Weapon . | . . . . Slashing Weapon . | . . . . Piercing Weapon . | . . . . Special Melee Weapon . | . . . . Unidentified Prototypes . | . . . . Parts Lost 5 | . . 1 4 Power 1 | . . . 1 Propulsion 2 | . . 1 1 Utility . | . . . . Weapon 2 | . . . 2 Highest Loss Streak 1 | . . 1 1 To Critical Strikes . | . . . . Average Slot Usage (%) 96 | . 96 100 93 Engine 12 | . 14 14 9 Wheel 27 | . 28 28 26 Device 3 | . 10 . . Storage 13 | . 14 14 13 Processor 10 | . 4 14 14 Energy Cannon 1 | . . . 5 Ballistic Gun 23 | . 25 28 19 Special Weapon 1 | . . . 2 Naked Turns . | . . . . Heaviest Build 30 | 11 28 27 30 Greatest Support 30 | 20 20 20 30 Greatest Overweight (x) 2 | 1 1 1 2 Average Overweight (x) . | . . 1 . Largest Inventory Capacity 15 | 8 15 15 15 Average Capacity 13 | 7 13 15 14 Most Carried 15 | 7 11 11 15 Average Carried 10 | 4 9 10 12 Final Capacity 15 | 8 15 15 15 Final Carried 15 | 7 11 11 15 Class Distribution -------------------- 100% | Mutant Dominant Class ---------------- Mutant | -10/Materials Mutant | -10/Mines Mutant | -10/Subcaves Resources | -11 -10 -10 -10 ----------- Run | Yrd Mat Min Sub Matter Collected 693 | 324 76 78 215 Remotely . | . . . . Salvage Created 415 | 132 101 . 182 Parts 35 | 12 12 . 11 Haulers Intercepted . | . . . . Recyclers Shooed 2 | 1 1 . . Parts Field Recycled . | . . . . Retrieved Matter . | . . . . Parts Self-Destructed 9 | . . . 9 Prevented . | . . . . Kills | -11 -10 -10 -10 ------- Run | Yrd Mat Min Sub Combat Hostiles Destroyed 11 | . 6 . 5 Guns 11 | . 6 . 5 Classes Destroyed 7 | 2 2 . 3 Worker 2 | 2 . . . Tunneler 4 | 4 . . . Watcher 1 | . 1 . . Swarmer 8 | . 6 . 2 Sentry 1 | . . . 1 Artisan 1 | . . . 1 Subdweller 2 | . . . 2 Best Kill Streak 5 | 5 4 . 3 Combat Bots Only 3 | . 3 . 3 Max Kills in Single Turn 2 | 1 2 . 1 Gunslinging . | . . . . Exploded . | . . . . Melee . | . . . . Uniques/NPCs Destroyed . | . . . . Combat | -11 -10 -10 -10 -------- Run | Yrd Mat Min Sub Hostile Shots Fired 75 | . 37 . 38 Missed 23 | . 10 . 13 Damage Taken 857 | . 216 106 535 Core 250 | . 53 16 181 Absorbed by Shields . | . . . . Core Remaining (%) 100 | 100 . . . Volleys Fired 73 | 18 21 1 33 Largest 2 | 1 2 2 2 Hottest 120 | 20 40 40 120 Shots Fired 111 | 18 38 2 53 Gun 98 | 18 38 2 40 Cannon 10 | . . . 10 Launcher . | . . . . Special 3 | . . . 3 Kinetic 97 | 18 38 2 39 Thermal 14 | . . . 14 Explosive . | . . . . Electromagnetic . | . . . . Robot Hit Streak 22 | 5 3 1 22 Robot Miss Streak 6 | 2 6 1 1 Penetration Max . | . . . . Secondary Targets 3 | . 3 . . Max Gunslinging Chain 1 | . 1 . . Shots Hit Robots 63 | 13 13 1 36 Core Hits 27 | 6 8 . 13 Critical Kills . | . . . . Critical Parts Destroyed . | . . . . Critical Strikes . | . . . . Melee Attacks . | . . . . Impact . | . . . . Slashing . | . . . . Piercing . | . . . . Sneak Attacks . | . . . . Combat Hostiles . | . . . . Follow-up Attacks . | . . . . Damage Inflicted 872 | 168 190 14 500 Guns 733 | 168 190 14 361 Cannons 139 | . . . 139 Explosions . | . . . . Melee . | . . . . Ramming . | . . . . Kinetic 715 | 168 190 14 343 Thermal 157 | . . . 157 Explosive . | . . . . Electromagnetic . | . . . . Impact . | . . . . Slashing . | . . . . Piercing . | . . . . Highest Corruption 2 | . 2 2 2 Average Corruption 2 | . 2 2 2 Corruption Purged . | . . . . Corruption Blocked . | . . . . Effects 14 | . 4 1 9 Message Errors 1 | . 1 . . Matter Fused 3 | . . . 3 Heat Flow Errors 1 | . . . 1 Energy Discharges 4 | . 1 1 2 Data Loss (minor) 1 | . . . 1 Data Loss (major) 2 | . 1 . 1 Misfires 2 | . 1 . 1 Overload Shots . | . . . . Overflow Damage . | . . . . Projectiles . | . . . . Explosions . | . . . . Melee . | . . . . Knockbacks . | . . . . Impact . | . . . . Kinetic . | . . . . Secondary . | . . . . Self-Inflicted Damage . | . . . . Shots . | . . . . Rammed . | . . . . Targets Rammed . | . . . . Kicked . | . . . . Crushed . | . . . . Highest Temperature 188 | . . . 188 Average Temperature 79 | . . . 79 Received Heat Transfer 180 | . . . 180 Siege Activations . | . . . . Robots Corrupted . | . . . . Combat Hostiles . | . . . . Parts Fried . | . . . . Impact Corruptions . | . . . . Robots Melted . | . . . . Combat Hostiles . | . . . . Parts Melted 1 | . . . 1 Heat Transferred 321 | . . . 321 Parts Sabotaged . | . . . . Parts Stolen . | . . . . Parts Stripped . | . . . . Power Chain Reactions . | . . . . Alert | -11 -10 -10 -10 ------- Run | Yrd Mat Min Sub Peak Influence 141 | 30 141 27 . Initial 27 | . 19 27 . Average 36 | 9 57 18 . Maximum Alert Level . | . . . . Low Security (%) 100 | 100 100 100 . Level 1 . | . . . . Level 2 . | . . . . Level 3 . | . . . . Level 4 . | . . . . Level 5 . | . . . . High Security . | . . . . Max Security . | . . . . Squads Dispatched . | . . . . Investigation . | . . . . Extermination . | . . . . Reinforcement . | . . . . Assault . | . . . . Garrison . | . . . . Intercept . | . . . . Searches Triggered . | . . . . Construction Impeded . | . . . . Haulers Reinforced . | . . . . Active Scanning Responses . | . . . . Cargo Convoy Interrupts . | . . . . Stealth | -11 -10 -10 -10 --------- Run | Yrd Mat Min Sub Distress Signals 1 | . 1 . . Communications Jammed . | . . . . Distress Signals . | . . . . Times Spotted 17 | . 11 . 6 Peak Tracking Total 4 | . 4 . 3 Tactical Retreats . | . . . . Traps | -11 -10 -10 -10 ------- Run | Yrd Mat Min Sub Traps Triggered 2 | . 1 1 . Indirectly . | . . . . Trap Hack Attempts . | . . . . Triggered . | . . . . Disarmed . | . . . . Reprogrammed . | . . . . Reused . | . . . . Traps Extracted . | . . . . Installed . | . . . . Triggered . | . . . . Machines | -11 -10 -10 -10 ---------- Run | Yrd Mat Min Sub Machines Disabled . | . . . . Max in Single Turn . | . . . . Machines Repaired . | . . . . Machines Dismantled . | . . . . Machines Sabotaged . | . . . . Overloaded Fab Kills . | . . . . Hacking | -11 -10 -10 -10 --------- Run | Yrd Mat Min Sub Machines Accessed 2 | . 1 1 . Terminals 1 | . 1 . . Fabricators . | . . . . Repair Stations . | . . . . Recycling Units . | . . . . Scanalyzers . | . . . . Garrison Access . | . . . . Total Hacks 2 | . 1 1 . Successful 1 | . . 1 . Failed 1 | . 1 . . Catastrophic . | . . . . Database Lockouts . | . . . . Manual 1 | . 1 . . Terminals 1 | . 1 . . Fabricators . | . . . . Repair Stations . | . . . . Recycling Units . | . . . . Scanalyzers . | . . . . Garrison Access . | . . . . Terminal Hacks 1 | . . 1 . Open Door 1 | . . 1 . Fabricator Hacks . | . . . . Repair Station Hacks . | . . . . Recycling Unit Hacks . | . . . . Scanalyzer . | . . . . Garrison Access Hacks . | . . . . Unauthorized Hacks . | . . . . Terminals . | . . . . Fabricators . | . . . . Repair Stations . | . . . . Recycling Units . | . . . . Scanalyzers . | . . . . Garrison Access . | . . . . Data Cores Recovered . | . . . . Used . | . . . . Hacking Detections 1 | . 1 . . Full Trace Events . | . . . . Feedback Events . | . . . . Feedback Blocked . | . . . . Robot Schematics Acquired . | . . . . Robots Built . | . . . . Authchips . | . . . . Time . | . . . . Total Robot Build Rating . | . . . . Part Schematics Acquired . | . . . . Parts Built . | . . . . Authchips . | . . . . Time . | . . . . Total Part Build Rating . | . . . . Parts Repaired . | . . . . Time . | . . . . Parts Recycled . | . . . . Recycled Matter . | . . . . Retrieved Matter . | . . . . Retrieved Components . | . . . . Parts Scanalyzed . | . . . . Part Schematics Acquired . | . . . . Parts Damaged . | . . . . Bothacking | -11 -10 -10 -10 ------------ Run | Yrd Mat Min Sub Used RIF Installer . | . . . . Robots Hacked . | . . . . Non-combat . | . . . . Combat . | . . . . Robot Hacks Applied . | . . . . Relay Couplers Released . | . . . . Fabnet Peak Effective % . | . . . . Robots Rewired . | . . . . Allies Hacked . | . . . . Hacks Repelled . | . . . . Allies | -11 -10 -10 -10 -------- Run | Yrd Mat Min Sub Total Allies . | . . . . Largest Group . | . . . . Highest-Rated Group . | . . . . Highest-Rated Ally . | . . . . Total Orders . | . . . . Ally Attacks . | . . . . Total Damage . | . . . . Kills . | . . . . Allies Corrupted . | . . . . Allies Melted . | . . . . Intel | -11 -10 -10 -10 ------- Run | Yrd Mat Min Sub Robot Analysis Total . | . . . . Derelict Logs Recovered . | . . . . Drone Launches . | . . . . Drone Recoveries . | . . . . Exploration | -11 -10 -10 -10 ------------- Run | Yrd Mat Min Sub Turns Passed 1469 | 124 486 340 519 Spaces Moved 1042 | 89 457 105 391 Core 4 | 4 . . . Treads . | . . . . Legs . | . . . . Wheels 1038 | 85 457 105 391 Hover . | . . . . Flight . | . . . . Fastest Speed 50 | 50 80 95 95 Average Speed 92 | 79 90 95 95 Slowest Speed 110 | 95 95 95 110 Overloaded Moves . | . . . . Propulsion Burnouts . | . . . . Robots Hopped . | . . . . Cave-ins Triggered . | . . . . Exploration Rate (%) 32 | 3 56 43 28 Regions Visited 3 Branch Regions 2 Pre-discovered Areas . | . . . . Known Exits Taken 2 | . 1 1 . Unknown Exits Taken 1 | 1 . . . Scrap Searched 1 | . . . 1 Spaces Dug . | . . . . Terrain Destroyed . | . . . . Melee . | . . . . Projectile . | . . . . AOE . | . . . . Terrain Rammed . | . . . . Walls Destroyed . | . . . . Machines Disabled . | . . . . Actions | -11 -10 -10 -10 --------- Run | Yrd Mat Min Sub Total 1426 | 120 491 343 472 Wait 264 | . 4 236 24 Move 1039 | 88 456 104 391 Hop . | . . . . Pick Up 21 | 7 3 1 10 Fast Attach 12 | 5 2 . 5 Attach 3 | 1 . 1 1 Detach 1 | . 1 . . Swap 9 | 1 2 . 6 Drop 4 | . 2 . 2 Fire 73 | 18 21 1 33 Melee . | . . . . Ram . | . . . . Kick . | . . . . Crush . | . . . . Escape Stasis . | . . . . Rewire . | . . . . Trap . | . . . . Miscellaneous . | . . . . Route ------- -11/Scrapyard -10/Materials (discovered 2 exits: *Mat / *Min) -10/Mines -10/Subcaves (discovered 1 exit: *Mat) History --------- Turn | Location | Event 8 | -11/Scrapyard | Discovered new exit (range 16) 125 | -11/Scrapyard | Entered Materials 302 | -10/Materials | Discovered new exit (range 12) 308 | -10/Materials | Build established: Mutant 454 | -10/Materials | Discovered new exit (range 11) 490 | -10/Materials | Identified exit to Materials 610 | -10/Materials | Identified exit to Mines 611 | -10/Materials | Entered Mines 652 | -10/Mines | Met a Derelict who couldn't figure out how to use a Trap Extractor 824 | -10/Mines | Found a damaged Exp. Sensor Array with a note attached 826 | -10/Mines | Found Prototype Device 930 | -10/Mines | Discovered new exit (range 5) 950 | -10/Mines | Identified exit to Subcaves 951 | -10/Mines | Entered Subcaves 952 | -10/Subcaves | Discovered new exit (range 7) 958 | -10/Subcaves | Identified exit to Materials 1447 | -10/Subcaves | Ambushed by angry Subdweller bent on revenge 1449 | -10/Subcaves | Core integrity fell below 50% 1469 | -10/Subcaves | Core integrity fell below 20% 1470 | -10/Subcaves | Destroyed by XC-S5O(R) with Subdweller Beam Cannon Last Messages --------------- 01209_ Acquired Sub. Optics. 01228_ System corrupted: Energy discharge (-55). 01261_ System corrupted: Matter fused (-7). 01274_ Assault Rifle destroyed. 01279_ DK-6VQ(R) destroyed. 01281_ Acquired 34 matter. 01320_ System corrupted: Heat flow error (+228). 01331_ Acquired Mak. Light Armor Plating. 01351_ System corrupted: Energy discharge (-65). 01354_ Acquired 11 matter. 01378_ System corrupted: Component data lost. 01443_ Acquired 31 matter. 01445_ IN-2FL(u) cries out in pain. 01445_ IN-2FL(u) destroyed. 01447_ XC-S5O(R) angrily emerges from the Twisted Machinery. 01447_ XC-S5O(R): "ECOKILL!" 01460_ Assault Rifle destroyed. 01466_ Acquired Sub. Laser. 01467_ Subatomizers dissect the Disposable Heat Sink. Map ----- +----------------------------------------------------+ | ####### #! ##### ""#?????????????? | | ### #?????#### ### # """#?????????????? | | #?## #???????# #### ### ""#?????????????? | | ???# ??????## ### # #?# ""##?????????????? | | ???# #????# ## ###?## " ##?????????????? | | ??? #???## #????## ####??????????? | | ??? ???# # ##????## #??????????? | | ??? ?## # ##????## #??????????? | | ??? ## ##### #?????######??????????? | | ???#??#####???## ##?????????????????????? | | ???????????????## ##?????????????????????? | | ???????????????## ### #?????????????????????? | | ??????????###### ##?# #????????????????????? | | ?????????## ## ##??## #????????????????????? | | ????????## ##??? ###????????????????????? | | ??????#?# #???" "#??????????????????????? | | ????# #?## #??##""##?????????????????????? | | #### #??## ###??#"" #?????????????????????? | | # ???## #????#"= #?????????????????????? | | "" #???# ##????*R= ####??????????????????? | | """""#???# ###### ##""#??????????????????? | | """#??## ""## " ""#??????????????????? | | #??## ## "" " ""#???????????????????? | | ## #### ###" " ""####????????????????? | | # ### ##### !""""" ????????????????? | | "####???##@ """"" ????????????????? | | # ""##?????# #"""" ????????????????? | | # # #"""" ######## ###"?????????????????? | | ## ## "#""## ### ##????????????????????? | | ?# " "" #### # #????????????????????? | | ?## """" # ###??# #????????????????????? | | ??# "" ## #????# # #;#????????????????????? | | ??## ##"" ### #????# #######????????????????????? | | ???#####" ##?# #???## #??????????????????????????? | | ??????# " #??# ##### #??????????????????????????? | | ??????###"#??# #??????????????????????????? | | ????????###??##########??????????????????????????? | | ?????????????????????????????????????????????????? | | ?????????????????????????????????????????????????? | | ?????????????????????????????????????????????????? | | ?????????????????????????????????????????????????? | | ?????????????????????????????????????????????????? | | ?????????????????????????????????????????????????? | | ?????????????????????????????????????????????????? | | ?????????????????????????????????????????????????? | | ?????????????????????????????????????????????????? | | ?????????????????????????????????????????????????? | | ?????????????????????????????????????????????????? | | ?????????????????????????????????????????????????? | | ?????????????????????????????????????????????????? | +----------------------------------------------------+ Best States ------------- Heat Dissipation 25 Energy Generation 10 Energy Capacity 250 Matter Stores 300 Matter Capacity 300 Sight Range 21 Terrain Scan Range 16 Terrain Scan Density 10 Evasion (%) 44 Item Schematics ----------------- None Robot Schematics ------------------ None Fabricated ------------ Nothing Alien Tech Used ----------------- None Achievements -------------- None Challenges ------------ None Game ------ Seed GatlingThiefShield Manual? 0 Play Time 00:10:39 Cumulative 26.7 hours Start 2024.05.02 @ 13:32:15 End 2024.05.02 @ 13:42:35 Sessions 1 Manual Loads 0 Difficulty Rogue Special Mode None Game No. 37 Rogue 29 Adventurer 8 Explorer 0 Win Type - Total 0 Types 0/0/0/0/0/0/0/0/0 Lore% 28 Gallery% 35 Achievement% 28 Wizard Run 0 Options --------- Layout 1 ASCII 0 Keyboard 0 Movement Arrows Keybinds 0 Fullscreen 1 Font 16/SmallcapsGlow Map View 55x38 Zoom Use 0% Tactical HUD 1 Map Filters NONE Filters NONE Steam 1 RUN: 5f38acd6-654f-4875-b575-7472ca7606c4